[Event "Sautron op 14th"]
[Site "Sautron"]
[Date "2014.10.27"]
[Round "4"]
[White "Neelotpal, Das"]
[Black "Belenkaya, Dina"]
[Result "1-0"]
[ECO "A22"]
[WhiteElo "2424"]
[BlackElo "2340"]
[Annotator "RR"]
[PlyCount "134"]
[EventDate "2014.10.26"]
[EventType "swiss"]
[EventRounds "9"]
[EventCountry "FRA"]
[SourceTitle "EXT 2015"]
[Source "ChessBase"]
[SourceDate "2014.11.20"]
[SourceVersion "1"]
[SourceVersionDate "2014.11.20"]
[SourceQuality "1"]
[TimeControl "40/5400+30:1800+30"]

1. c4 {[%emt 0:00:00]} e5 {[%emt 0:01:44] Le choix de l'anglaise a visiblement
surpris la russe qui s'était probablement préparée sur 1.e4} 2. Nc3 {
[%emt 0:00:17]} Nf6 {[%emt 0:00:18]} 3. g3 {[%emt 0:00:05]} d5 {[%emt 0:01:01]}
4. cxd5 {[%emt 0:00:06]} Nxd5 {[%emt 0:00:02]} 5. Bg2 {[%emt 0:00:06]} Nb6 {
[%emt 0:00:14][%csl Gd4]} (5... Ne7 {Lagarde,M (2566)-Neelotpal,D (2424) 14th
Op Sautron 2014 (5.1) 1-0}) 6. e3 {[%emt 0:00:05]} (6. Nf3 {La grande ligne})
6... Be7 {[%emt 0:01:32]} (6... c5 7. Nge2 Nc6 8. O-O Be7 9. a4 Na5 10. f4 O-O
11. fxe5 c4 12. Nd4 Bc5 13. Ncb5 Qe7 14. d3 Qxe5 15. Bd2 cxd3 16. Bxa5 a6 17.
Qxd3 axb5 18. axb5 Nd5 19. Bd2 Rxa1 20. Rxa1 Bd7 21. Kh1 g6 22. Nb3 Bxe3 23.
Qxd5 Qxd5 24. Bxd5 Bxd2 25. Nxd2 Bxb5 26. Bxb7 Rd8 27. Ra8 {1-0 (27) Karjakin,
S (2777)-Fedoseev,V (2677) Moscow 2014}) 7. Nge2 {[%emt 0:00:15]} O-O {[%emt 0:
00:39]} 8. O-O {[%emt 0:01:59]} c5 {[%emt 0:08:28]} (8... Nc6) 9. a4 {[%emt 0:
10:33][%cal Ga4a5]} a6 $6 $146 {[%emt 0:08:44] Les Noirs veulent éviter
d'affaiblir la case "b4"} (9... a5 10. d4 exd4 11. exd4 Nc6 12. d5 Nb4 13. Bf4
Nc4 14. Nb5 Nxb2 15. Qb3 Bf6 16. Nec3 N2d3 17. Bc7 Qd7 18. Rab1 Be5 19. d6 Qg4
20. f4 Bxf4 21. gxf4 Nxf4 22. Rxf4 Qxf4 23. Ne4 Bd7 24. Qg3 Qxg3 25. hxg3 Bxb5
26. axb5 a4 27. Nxc5 a3 28. Rxb4 a2 29. Nb3 Ra3 30. Na1 Rd3 31. Ra4 Rd2 32. Kh2
{1-0 (32) Bocharov,D (2600)-Kanter,E (2402) Izhevsk 2012}) 10. a5 $1 {[%emt 0:
01:11]} Nc4 {[%emt 0:08:51]} 11. Qa4 $36 {[%emt 0:00:52]} b5 {[%emt 0:02:29]} (
11... Nd6 {Moins affaiblissant}) 12. axb6 {[%emt 0:14:42]} Nxb6 {[%emt 0:02:24]
} 13. Qa5 $14 {[%emt 0:03:57]} Ra7 {[%emt 0:01:05]} 14. d4 $1 {[%emt 0:13:24]}
Nc4 {[%emt 0:19:22]} 15. Qxd8 {[%emt 0:05:30]} Rxd8 {[%emt 0:00:41]} 16. d5 $44
{[%emt 0:00:05]} (16. Nd5 $5 cxd4 17. exd4 exd4 18. Rd1 $32 {Les pièces
Noires sont désorganisées}) 16... Nd6 {[%emt 0:05:03]} 17. Na4 {[%emt 0:01:
15]} Nd7 {[%emt 0:03:14]} 18. Bd2 {[%emt 0:00:21]} a5 {[%emt 0:04:16]} 19. Rfc1
$32 {[%emt 0:03:49]} Ba6 {[%emt 0:01:27]} 20. Bf1 {[%emt 0:04:01]} Rb8 {
[%emt 0:02:10]} 21. Be1 {[%emt 0:02:20]} Bc4 {[%emt 0:04:19]} 22. Nec3 {
[%emt 0:01:56]} Bb3 {[%emt 0:05:02]} 23. Nb1 {[%emt 0:15:39]} Bxd5 {[%emt 0:06:
11]} 24. Nxc5 {[%emt 0:00:24]} Rc8 {[%emt 0:05:24]} 25. Nd3 {[%emt 0:02:56]}
Rxc1 {[%emt 0:00:17]} 26. Nxc1 {[%emt 0:00:06]} a4 {[%emt 0:02:12]} (26... Bd8
{[%cal Gd8a5]}) 27. Bb4 {[%emt 0:05:20]} Nc8 {[%emt 0:01:40]} 28. Nd3 {[%emt 0:
04:20]} Bb3 {[%emt 0:02:53]} 29. Nd2 {[%emt 0:00:53]} Bxb4 {[%emt 0:01:00]} 30.
Nxb4 {[%emt 0:00:46]} Be6 {[%emt 0:00:58]} 31. Ne4 {[%emt 0:03:30]} f6 {
[%emt 0:00:33]} 32. Nd3 {[%emt 0:02:36]} Ra5 $6 {[%emt 0:00:59]} 33. b4 {
[%emt 0:00:34]} Ra7 {[%emt 0:00:15]} 34. Nec5 {[%emt 0:00:56]} Bb3 {[%emt 0:00:
14]} 35. Nxb3 {[%emt 0:01:02]} axb3 {[%emt 0:00:01]} 36. Rb1 {[%emt 0:00:20]}
Ra3 {[%emt 0:00:43]} 37. Nc1 {[%emt 0:00:45]} Ndb6 {[%emt 0:00:50]} 38. Nxb3
$16 {[%emt 0:00:18][%csl Gb4]} Kf8 {[%emt 0:00:25]} 39. Nc5 {[%emt 0:00:17]}
Nd6 {[%emt 0:00:51]} 40. Ne6+ {[%emt 0:00:00]} Kf7 {[%emt 0:00:00]} 41. Nd8+ {
[%emt 0:04:27]} Ke8 {[%emt 0:01:27]} 42. Rd1 {[%emt 0:02:22]} Nbc8 {[%emt 0:05:
47]} 43. Ne6 {[%emt 0:05:52]} Rb3 $6 {[%emt 0:07:50]} 44. Nxg7+ {[%emt 0:00:27]
} Kf7 {[%emt 0:03:18][%csl Rb3,Rf7][%cal Gf1c4]} 45. Nf5 $1 {[%emt 0:01:04]}
Ke6 {[%emt 0:00:12]} 46. e4 $40 {[%emt 0:12:10]} Kd7 {[%emt 0:07:41]} 47. b5 {
[%emt 0:00:06]} Kc7 {[%emt 0:00:30]} 48. Rc1+ {[%emt 0:02:46]} Kb7 {[%emt 0:00:
53]} 49. Ne3 {[%emt 0:03:17]} (49. Rc6 Nxe4 50. Bc4 $40 {[%cal Gc4d5]}) 49...
Ne7 {[%emt 0:04:37]} 50. Nc4 {[%emt 0:00:14]} Nxc4 {[%emt 0:00:42]} 51. Bxc4 {
[%emt 0:00:03]} Rb4 {[%emt 0:00:10]} 52. Kg2 {[%emt 0:00:39]} Kb6 {[%emt 0:00:
19]} 53. Kf3 {[%emt 0:00:34][%csl Rf6,Rh7][%cal Gf3g4]} h6 {[%emt 0:01:53]} 54.
Rc2 {[%emt 0:00:12]} Nc8 {[%emt 0:01:57]} 55. Be2 {[%emt 0:03:11]} Na7 {
[%emt 0:00:10]} 56. Rd2 {[%emt 0:00:19]} Kc5 {[%emt 0:01:21]} 57. Rd5+ {
[%emt 0:00:19]} Kb6 {[%emt 0:00:18]} 58. Rd6+ {[%emt 0:00:04]} Kc5 {[%emt 0:00:
10]} 59. Rxf6 $18 {[%emt 0:00:07]} Rb3+ {[%emt 0:01:06]} 60. Kg2 {[%emt 0:01:
13]} Kd4 {[%emt 0:00:29]} 61. Rxh6 {[%emt 0:01:07]} Rb2 {[%emt 0:00:21]} 62.
Bf1 {[%emt 0:00:30]} Kxe4 {[%emt 0:00:09]} 63. Ra6 {[%emt 0:00:52]} Nc8 {
[%emt 0:00:20]} 64. h4 {[%emt 0:00:11]} Kd4 {[%emt 0:00:26]} 65. Rc6 {[%emt 0:
00:52]} Na7 {[%emt 0:00:22]} 66. Rc7 {[%emt 0:00:24]} Nxb5 {[%emt 0:01:07]} 67.
Rb7 {[%emt 0:00:10]} Ke4 1-0